fUST/lending_fUST_20241101
["ID","MTS","AMOUNT","RATE_DAILY","PERIOD"]
[341118607,1730403032686,-2453.88437261,0.00028471,2]
[341118608,1730403032695,-907.86402669,0.00028852,2]
[341118610,1730403032705,-372.269108,0.00029057,2]
[341118612,1730403032715,-300.0,0.0003,2]
[341118613,1730403032725,-3000.0,0.00030124,2]
[341118614,1730403032734,-2453.88437261,0.00030257,2]
[341118615,1730403032743,-24900.0,0.00031534,2]
[341118616,1730403032752,-2453.88437261,0.00032043,2]
[341118617,1730403032761,-227.62975054,0.00032877,2]
[341118618,1730403032771,-378.26,0.0003299,3]
[341118619,1730403032785,-13599.57,0.00033,15]
[341118620,1730403032795,-153.0,0.00033377,2]
[341118621,1730403032812,-301.36,0.00033472,10]
[341118622,1730403032822,-978.75,0.00033482,30]
[341118623,1730403032832,-361.63,0.00033485,10]
[341118624,1730403032842,-489.38,0.00033495,30]
[341118625,1730403032852,-480.38,0.00033495,30]
[341118626,1730403032863,-372.54152989,0.00033502,7]
[341118627,1730403032873,-421.20972032,0.00033502,7]
[341118628,1730403032883,-117574.30556447,0.00033503,20]
[341118629,1730403032893,-958.44060367,0.00033503,2]
[341118630,1730403032904,-2453.88437261,0.00033829,2]
[341118631,1730403032914,-153.0,0.00033836,2]
[341118632,1730403032924,-153.0,0.00033836,2]
[341118633,1730403032934,-153.0,0.00033836,2]
[341118634,1730403032943,-153.0,0.00033836,2]
[341118635,1730403032954,-153.0,0.00033836,2]
[341118636,1730403032964,-56000.0,0.00034,4]
[341118637,1730403032973,-153.0,0.00034164,2]
[341118638,1730403032983,-153.0,0.00034164,2]
[341118639,1730403032992,-153.0,0.00034164,2]
[341118640,1730403033002,-156.026,0.0003435,10]
[341118641,1730403033011,-500.0,0.00034399,2]
[341118642,1730403033022,-27550.54951038,0.000344,10]
[341118661,1730403040688,-500.0,0.00026848,2]
[341118662,1730403040699,-500.0,0.00026848,2]
[341118663,1730403040709,-500.0,0.00026848,2]
[341118664,1730403040720,-500.0,0.00026848,2]
[341118665,1730403040729,-500.0,0.00026848,2]
[341118666,1730403040739,-238.83816052,0.00026848,2]
[341118667,1730403040748,-500.0,0.00026848,2]
[341118668,1730403040757,-500.0,0.00026848,2]
[341118669,1730403040766,-500.0,0.00026848,2]
[341118670,1730403040775,-500.0,0.00026848,2]
[341118671,1730403040787,-500.0,0.00026848,2]
[341118672,1730403040796,-500.0,0.00026848,2]
[341118673,1730403040805,-504.83489473,0.00026848,2]
[341118674,1730403040815,-500.0,0.00026848,2]
[341118675,1730403040824,-500.0,0.00026848,2]
[341118676,1730403040833,-251.13,0.00033472,10]
[341118677,1730403040843,-149334.33325808,0.000344,10]
[341118737,1730403282455,168.806087,0.00013973,2]
[341118745,1730403650166,-600.0,0.000344,120]
[341118748,1730403845017,180.623353,0.00013973,2]
[341118750,1730403890206,1903.15547543,0.00033514,120]
[341118751,1730403915270,-200.0,0.000345,120]
[341118752,1730403915296,-2790.0,0.00034534,120]
[341118753,1730403928435,-204.01060456,0.00034534,120]
[341118754,1730403928480,-999.0,0.00034849,120]
[341118755,1730403928758,-986.98939544,0.00035,120]
[341118757,1730403949445,1.0,0.00034849,120]
[341118760,1730404055589,999.0,0.00034849,120]
[341118761,1730404055612,805.0,0.00034849,120]
[341118762,1730404055634,805.0,0.00034849,120]
[341118763,1730404063638,200.0,0.000345,120]
[341118862,1730404232801,-200.0,0.00024,2]
[341118863,1730404232819,-108.54823592,0.00025316,2]
[341118879,1730404239023,-710.63485466,0.00025316,2]
[341118880,1730404239042,-774.3734493,0.00025316,2]
[341118881,1730404239054,-1218.93045362,0.00025316,2]
[341118882,1730404239064,-175.117,0.00025339,2]
[341118883,1730404239074,-170.676623,0.0002582,2]
[341118884,1730404239083,-279.8351271,0.0002587,2]
[341118885,1730404239095,-3435.8285822,0.0002587,2]
[341118886,1730404239104,-186.134554,0.00025876,2]
[341118887,1730404239114,-176.408133,0.00026068,2]
[341118888,1730404239123,-428.6661847,0.00026078,2]
[341118889,1730404239133,-300.0,0.00026847,2]
[341118890,1730404239144,-300.0,0.00026847,2]
[341118891,1730404239156,-3186.238859,0.00026855,2]
[341118892,1730404239318,-1813.761141,0.00026855,2]
[341118893,1730404239327,-10942.8343774,0.00026856,2]
[341118902,1730404240944,-13957.1656226,0.00026856,2]
[341118903,1730404240954,-1066.2446469,0.00026974,2]
[341118904,1730404240964,-165.362208,0.00027074,2]
[341118905,1730404240974,-1066.24464685,0.00028463,2]
[341118906,1730404240983,-423.6893508,0.00028464,2]
[341118907,1730404240992,-165.362208,0.00028485,2]
[341118908,1730404241004,-420.0,0.00029029,2]
[341118909,1730404241016,-300.0,0.00029532,2]
[341118910,1730404241027,-1066.24464685,0.00029953,2]
[341118911,1730404241037,-163.88925,0.0003,2]
[341118912,1730404241047,-500.0,0.00030136,2]
[341118913,1730404241057,-500.0,0.00030136,3]
[341118914,1730404241066,-500.0,0.0003041,3]
[341118915,1730404241079,-500.0,0.00030425,5]
[341118916,1730404241089,-500.0,0.00030425,5]
[341118917,1730404241099,-500.0,0.00030425,5]
[341118918,1730404241108,-500.0,0.00030425,2]
[341118919,1730404241118,-500.0,0.00030684,3]
[341118920,1730404241127,-500.0,0.00030958,3]
[341118921,1730404241137,-500.0,0.00031232,3]
[341118922,1730404241147,-538.42858281,0.00031388,2]
[341118923,1730404241158,-500.0,0.00031388,2]
[341118924,1730404241293,-500.0,0.00031388,2]
[341118925,1730404241305,-152.39727109,0.00031388,2]
[341118926,1730404241314,-500.0,0.00031388,2]
[341118927,1730404241325,-500.0,0.00031388,2]
[341118928,1730404241335,-500.0,0.00031388,2]
[341118929,1730404241347,-440.16199514,0.00031388,2]
[341118930,1730404241356,-500.0,0.00031388,2]
[341118931,1730404241366,-500.0,0.00031388,2]
[341118932,1730404241375,-500.0,0.00031388,2]
[341118933,1730404241385,-500.0,0.00031388,2]
[341118934,1730404241395,-268.14478206,0.00031388,2]
[341118935,1730404241408,-231.85521794,0.00031388,2]
[341118936,1730404241419,-500.0,0.00031388,2]
[341118937,1730404241430,-500.0,0.00031388,2]
[341118938,1730404241439,-500.0,0.00031388,2]
[341118939,1730404241450,-500.0,0.00031388,2]
[341118940,1730404241460,-477.09451124,0.00031388,2]
[341118941,1730404241470,-500.0,0.00031388,2]
[341118942,1730404241480,-500.0,0.00031388,2]
[341118943,1730404241493,-587.0,0.00031389,2]
[341118944,1730404241508,-1066.24464685,0.00031442,2]
[341118945,1730404241518,-500.0,0.00031506,3]
[341118946,1730404241529,-159.10101552,0.00031527,2]
[341118947,1730404241543,-4840.89898448,0.00031527,2]
[341118948,1730404241556,-500.0,0.00031533,2]
[341118949,1730404241565,-500.0,0.00031533,2]
[341118950,1730404241576,-500.0,0.00031533,2]
[341118951,1730404241586,-5000.0,0.00031664,2]
[341118952,1730404241596,-240.78208915,0.0003178,3]
[341118953,1730404241605,-151.0,0.00031996,7]
[341118954,1730404241615,-151.0,0.00032797,7]
[341118955,1730404241624,-1066.24464685,0.00032932,2]
[341118956,1730404241634,-163.88925,0.00032954,2]
[341118957,1730404241646,-500.0,0.00032999,2]
[341118958,1730404241657,-210.9749991,0.00033123,2]
[341118959,1730404241667,-210.9749991,0.00033123,2]
[341118960,1730404241676,-210.9749991,0.00033123,2]
[341118961,1730404241686,-1000.0,0.00033231,2]
[341118962,1730404241696,-153.0,0.00033349,2]
[341118963,1730404241705,-153.0,0.00033349,2]
[341118964,1730404241714,-153.0,0.00033353,2]
[341118965,1730404241723,-153.0,0.00033353,2]
[341118966,1730404241733,-210.9749991,0.00033397,2]
[341118967,1730404241745,-158.165,0.0003343,10]
[341118968,1730404241754,-170.35974273,0.00033514,30]
[341118969,1730404241763,-5000.0,0.00033516,30]
[341118970,1730404241772,-151.0,0.00033598,15]
[341118971,1730404241782,-160.0,0.00033753,3]
[341118972,1730404241791,-467.0,0.0003394,2]
[341118973,1730404241800,-419.3369244,0.00033945,2]
[341118974,1730404241811,-210.9749991,0.00033945,2]
[341118975,1730404241822,-210.9749991,0.00033945,2]
[341118976,1730404241832,-5000.0,0.00033997,2]
[341118977,1730404241842,-500.0,0.00033999,2]
[341118978,1730404241852,-500.0,0.00033999,2]
[341118979,1730404241863,-500.0,0.00033999,2]
[341118980,1730404241872,-500.0,0.00033999,2]
[341118981,1730404241881,-210.9749991,0.00034137,2]
[341118982,1730404241891,-210.9749991,0.00034137,2]
[341118983,1730404241900,-210.9749991,0.00034137,2]
[341118984,1730404241909,-613.0,0.000342,2]
[341118985,1730404241919,-483.3422928,0.000343,2]
[341118986,1730404241928,-167.5,0.00034389,3]
[341118987,1730404241939,-502.52,0.00034389,3]
[341118988,1730404241948,-513.12,0.00034389,10]
[341118989,1730404241958,-427.6,0.00034389,10]
[341118990,1730404241967,-356.33,0.00034389,10]
[341118991,1730404241977,-157.45980935,0.00034398,2]
[341118992,1730404241987,-5000.0,0.00034398,2]
[341118993,1730404241997,-547.37618204,0.00034399,7]
[341118994,1730404242007,-175.78724179,0.00034399,7]
[341118995,1730404242017,-628.653971,0.00034399,7]
[341118996,1730404242029,-174.87964295,0.00034399,7]
[341118997,1730404242038,-151.0,0.00034399,15]
[341118998,1730404242049,-5000.0,0.00034399,2]
[341118999,1730404242059,-5000.0,0.00034399,2]
[341119000,1730404242070,-1511.55087868,0.000344,10]
[341119001,1730404242082,-19311.7583259,0.000344,10]
[341119012,1730404243858,-187.38326015,0.00032877,2]
[341119014,1730404243868,-210.9749991,0.00033945,2]
[341119016,1730404243877,-41786.31426816,0.000344,10]
[341119017,1730404243889,-306.24798982,0.000344,10]
[341119020,1730404243914,-538.17,0.000344,10]
[341119084,1730404247083,-3292.56034421,0.00033516,30]
[341119085,1730404247095,-1550.0889567,0.00033516,30]
[341119087,1730404359708,164.098926,0.00013973,2]
[341119089,1730404430765,5000.0,0.00020118,2]
[341119090,1730404438865,5000.0,0.00020118,2]
[341119091,1730404446735,5000.0,0.00020118,2]
[341119092,1730404454694,5000.0,0.00020118,2]
[341119093,1730404462491,5000.0,0.00020118,2]
[341119094,1730404470715,5000.0,0.00020118,2]
[341119095,1730404478563,4014.20658237,0.00020118,2]
[341119096,1730404486735,5000.0,0.00020118,2]
[341119097,1730404502490,5000.0,0.00020118,2]
[341119098,1730404517651,4235.46428296,0.00020118,2]
[341119100,1730405042098,157.646979,0.00013973,2]
[341119190,1730405431863,-157.646979,0.00021209,2]
[341119192,1730405431875,-166.748309,0.00026843,2]
[341119194,1730405431884,-580.7766874,0.00027421,2]
[341119195,1730405431893,-148.29580196,0.00027461,2]
[341119196,1730405431917,-126.49943814,0.00027461,2]
[341119197,1730405431926,-186.134555,0.0002751,2]
[341119198,1730405431936,-651.1368128,0.00027538,64]
[341119199,1730405431945,-157.646979,0.00028445,2]
[341119200,1730405431955,-166.748309,0.00028673,2]
[341119201,1730405431964,-179.000543,0.00028806,2]
[341119202,1730405431973,-179.000543,0.00029106,2]
[341119203,1730405431983,-179.000543,0.00029406,2]
[341119204,1730405431992,-300.0,0.00029673,2]
[341119205,1730405432001,-300.0,0.00029673,2]
[341119206,1730405432010,-4896.16217486,0.00029674,2]
[341119207,1730405432022,-103.83782514,0.00029674,2]
[341119208,1730405432031,-239.68717486,0.00029675,2]
[341119216,1730405438066,-2486.99999999,0.00029675,2]
[341119217,1730405438158,-1721.37358062,0.00029675,2]
[341119218,1730405438171,-7010.1,0.00029675,2]
[341119226,1730405440171,-1657.92191429,0.00029675,2]
[341119227,1730405440224,-11783.91733024,0.00029675,2]
[341119228,1730405440235,-67.76230359,0.00029707,2]
[341119229,1730405440248,-111.23823941,0.00029707,2]
[341119230,1730405440257,-400.0,0.0003,2]
[341119231,1730405440266,-179.000543,0.00030007,2]
[341119232,1730405440276,-179.000543,0.00030307,2]
[341119233,1730405440285,-166.748309,0.00030502,2]
[341119234,1730405440294,-500.0,0.00032876,2]
[341119235,1730405440303,-181.24010618,0.00032877,2]
[341119236,1730405440312,-3208.758,0.0003314,2]
[341119237,1730405440324,-150.197,0.0003314,7]
[341119238,1730405440335,-500.0,0.00033262,7]
[341119239,1730405440347,-500.0,0.00033262,7]
[341119240,1730405440358,-500.0,0.00033262,7]
[341119241,1730405440368,-500.0,0.00033262,7]
[341119242,1730405440381,-500.0,0.00033262,7]
[341119243,1730405440390,-500.0,0.00033262,7]
[341119244,1730405440400,-500.0,0.00033262,7]
[341119245,1730405440409,-500.0,0.00033262,7]
[341119246,1730405440419,-500.0,0.00033262,7]
[341119247,1730405440429,-500.0,0.00033262,7]
[341119248,1730405440438,-500.0,0.00033262,7]
[341119249,1730405440449,-551.99051005,0.00033262,7]
[341119250,1730405440459,-500.0,0.00033262,7]
[341119251,1730405440468,-500.0,0.00033262,7]
[341119252,1730405440477,-500.0,0.00033262,7]
[341119253,1730405440486,-393.6751219,0.00033262,7]
[341119254,1730405440495,-500.0,0.00033262,7]
[341119255,1730405440505,-24.18018045,0.00033262,7]
[341119261,1730405443026,-347.17157082,0.00033262,7]
[341119262,1730405443038,-128.64824873,0.00033262,7]
[341119263,1730405443048,-500.0,0.00033262,7]
[341119264,1730405443058,-97.32163911,0.00033262,7]
[341119265,1730405443080,-402.67836089,0.00033262,7]
[341119266,1730405443089,-277.77012801,0.00033262,7]
[341119267,1730405443101,-222.22987199,0.00033262,7]
[341119268,1730405443111,-500.0,0.00033262,7]
[341119269,1730405443121,-500.0,0.00033262,7]
[341119270,1730405443133,-500.0,0.00033262,7]
[341119271,1730405443144,-500.0,0.00033262,7]
[341119272,1730405443154,-500.0,0.00033262,7]
[341119273,1730405443167,-500.0,0.00033262,7]
[341119275,1730405443176,-500.0,0.00033262,7]
[341119277,1730405443185,-500.0,0.00033262,7]
[341119279,1730405443195,-255.71093135,0.00033262,7]
[341119281,1730405443205,-500.0,0.00033262,7]
[341119284,1730405443215,-500.0,0.00033262,7]
[341119286,1730405443224,-500.0,0.00033262,7]
[341119288,1730405443233,-54.23495685,0.00033262,7]
[341119302,1730405446464,-445.76504315,0.00033262,7]
[341119303,1730405446474,-482.93527442,0.00033263,7]
[341119304,1730405446484,-475.28968243,0.00033264,2]
[341119305,1730405446496,-4524.71031757,0.00033264,2]
[341119306,1730405446505,-5000.0,0.00033341,2]
[341119307,1730405446514,-151.72230327,0.00033457,2]
[341119308,1730405446524,-200.0,0.000336,22]
[341119309,1730405446534,-167.489,0.0003378,10]
[341119310,1730405446543,-317.021769,0.00034128,2]
[341119311,1730405446553,-1067.45,0.000343,31]
[341119312,1730405446562,-1067.45,0.000343,31]
[341119313,1730405446571,-210.9749991,0.00034301,2]
[341119314,1730405446581,-5000.0,0.00034343,30]
[341119315,1730405446591,-335.0,0.00034389,3]
[341119316,1730405446601,-296.94,0.0003439,10]
[341119317,1730405446610,-247.45,0.0003439,10]
[341119318,1730405446619,-206.21,0.0003439,10]
[341119319,1730405446629,-5000.0,0.00034398,2]
[341119320,1730405446640,-470.17513873,0.00034399,7]
[341119321,1730405446650,-217.78163096,0.00034399,7]
[341119322,1730405446660,-631.56492633,0.00034399,7]
[341119323,1730405446670,-1000.0,0.00034399,2]
[341119324,1730405446679,-5000.0,0.00034399,2]
[341119325,1730405446689,-5000.0,0.00034399,2]
[341119326,1730405446699,-5000.0,0.00034399,2]
[341119327,1730405446709,-248343.92925908,0.000344,10]
[341119328,1730405446718,-40000.0,0.000344,31]
[341119329,1730405446727,-4076.0,0.000344,30]
[341119330,1730405446737,-300.0,0.000344,17]
[341119331,1730405446750,-2162.41,0.000344,2]
[341119332,1730405446760,-171.84,0.00034425,10]
[341119333,1730405446770,-490.48379614,0.0003443,30]
[341119334,1730405446779,-154.33748259,0.00034433,30]
[341119335,1730405446790,-718.0,0.00034435,30]
[341119336,1730405446799,-5000.0,0.00034435,2]
[341119337,1730405446809,-1000.0,0.00034436,30]
[341119338,1730405446819,-10000.0,0.00034436,30]
[341119339,1730405446828,-158.93371465,0.00034442,8]
[341119340,1730405446837,-500.0,0.00034456,30]
[341119341,1730405446847,-175.117,0.00034459,2]
[341119342,1730405446856,-155.0,0.00034467,30]
[341119343,1730405446865,-155.0,0.00034467,30]
[341119344,1730405446875,-155.0,0.00034467,30]
[341119345,1730405446886,-155.0,0.00034467,30]
[341119346,1730405446896,-155.0,0.00034467,30]
[341119347,1730405446906,-155.0,0.00034467,30]
[341119348,1730405446915,-159.15014985,0.00034467,30]
[341119349,1730405446926,-158.51499201,0.00034472,2]
[341119350,1730405446936,-1000.0,0.00034472,30]
[341119351,1730405446946,-1004.49348686,0.00034496,5]
[341119352,1730405446956,-5000.0,0.00034499,2]
[341119353,1730405446965,-209.43,0.000345,30]
[341119354,1730405446974,-410.77515113,0.000345,30]
[341119355,1730405446984,-9592.59,0.000345,15]
[341119356,1730405446994,-150.05,0.00034525,30]
[341119357,1730405447003,-1022.91317879,0.00034529,30]
[341119358,1730405447013,-156.44,0.00034529,30]
[341119359,1730405447022,-5193.39753951,0.00034599,2]
[341119360,1730405447032,-5000.0,0.00034661,2]
[341119361,1730405447042,-2500.0,0.00034662,3]
[341119362,1730405447051,-2500.0,0.00034671,3]
[341119363,1730405447060,-2500.0,0.00034679,3]
[341119364,1730405447069,-2500.0,0.00034688,3]
[341119365,1730405447078,-5000.0,0.00034689,2]
[341119366,1730405447088,-151.0,0.0003469,30]
[341119367,1730405447097,-151.0,0.0003469,30]
[341119368,1730405447106,-500.0,0.0003469,30]
[341119369,1730405447116,-151.0,0.0003469,30]
[341119370,1730405447125,-5000.0,0.0003469,30]
[341119371,1730405447136,-2500.0,0.00034697,3]
[341119372,1730405447145,-1012.00459869,0.00034697,3]
[341119373,1730405447154,-2500.0,0.00034697,3]
[341119374,1730405447167,-2494.6613107,0.00034697,3]
[341119375,1730405447176,-500.0,0.0003474,3]
[341119376,1730405447185,-500.0,0.0003474,3]
[341119377,1730405447194,-510.0,0.0003474,3]
[341119378,1730405447204,-1000.0,0.000348,5]
[341119379,1730405447214,-1000.0,0.000348,3]
[341119380,1730405447223,-500.0,0.00034803,3]
[341119381,1730405447233,-513.0,0.00034803,3]
[341119382,1730405447243,-651.69897078,0.00034849,120]
[341119383,1730405447252,-1000.0,0.000349,2]
[341119384,1730405447261,-167.518,0.00034907,120]
[341119385,1730405447271,-198.29216602,0.00034964,30]
[341119386,1730405447280,-151.0,0.00034964,30]
[341119387,1730405447289,-500.0,0.00034964,30]
[341119388,1730405447299,-198.0,0.00034964,30]
[341119389,1730405447308,-500.0,0.00034973,5]
[341119390,1730405447317,-5000.0,0.00034997,2]
[341119391,1730405447327,-2488.13504706,0.00034999,2]
[341119392,1730405447337,-182.78719907,0.00035,60]
[341119393,1730405447346,-10471.63768609,0.00035,2]
[341119394,1730405447355,-7772.4805472,0.00035,7]
[341119395,1730405447365,-989.84299058,0.00035,10]
[341119396,1730405447374,-487.0,0.00035,30]
[341119397,1730405447386,-3000.0,0.00035,7]
[341119398,1730405447395,-1000.0,0.00035,10]
[341119399,1730405447405,-500.0,0.00035,10]
[341119400,1730405447414,-1000.0,0.00035,2]
[341119401,1730405447423,-12266.989369,0.00035,18]
[341119402,1730405447498,-647.26450636,0.00035,18]
[341119403,1730405447508,-500.0,0.00035,2]
[341119404,1730405447518,-428.69946488,0.00035,30]
[341119405,1730405447528,-151.0,0.00035,14]
[341119406,1730405447538,-151.0,0.00035,14]
[341119407,1730405447547,-151.0,0.00035,14]
[341119408,1730405447556,-151.0,0.00035,14]
[341119409,1730405447565,-151.0,0.00035,14]
[341119410,1730405447575,-233.51662394,0.00035,30]
[341119504,1730405555612,169.9292031,0.00013973,2]
[341119508,1730406054168,157.646979,0.00013973,2]
[341119560,1730406517545,1295.69486957,0.000134,2]
[341119561,1730406518516,267.11881603,0.00014114,2]
[341119562,1730406528257,1538.19336197,0.00014,2]
[341119563,1730406528281,5206.13679754,0.00014,2]
[341119567,1730406546381,169.12768,0.00013973,2]
[341119644,1730406635685,-300.0,0.00020376,2]
[341119645,1730406635702,-300.0,0.00020376,2]
[341119646,1730406635715,-500.0,0.00020376,2]
[341119647,1730406635725,-500.0,0.00020376,2]
[341119648,1730406635736,-500.0,0.00020376,2]
[341119649,1730406635747,-500.0,0.00020376,2]
[341119650,1730406635757,-500.0,0.00020376,2]
[341119651,1730406635766,-644.22030351,0.00020376,2]
[341119652,1730406635777,-161.33774559,0.00020376,2]
[341119653,1730406635790,-104.2267628,0.00020376,2]
[341119654,1730406635799,-500.0,0.00020376,2]
[341119655,1730406635808,-500.0,0.00020376,2]
[341119656,1730406635818,-500.0,0.00020376,2]
[341119657,1730406635828,-500.0,0.00020376,2]
[341119658,1730406635837,-500.0,0.00020376,2]
[341119659,1730406635846,-500.0,0.00020376,2]
[341119660,1730406635856,-500.0,0.00020376,2]
[341119661,1730406635865,-500.0,0.00020376,2]
[341119662,1730406635875,-500.0,0.00020376,2]
[341119663,1730406635885,-500.0,0.00020376,2]
[341119664,1730406635894,-625.11884483,0.00020376,2]
[341119665,1730406635904,-500.0,0.00020376,2]
[341119666,1730406635913,-109.50508921,0.00020376,2]
[341119667,1730406635925,-259.11278618,0.00020376,2]
[341119668,1730406635937,-131.38212461,0.00020376,2]
[341119669,1730406635946,-420.61787539,0.00020376,2]
[341119670,1730406635958,-79.38212461,0.00020376,2]
[341119671,1730406635967,-354.52495338,0.00020376,2]
[341119672,1730406635979,-145.47504662,0.00020376,2]
[341119673,1730406635990,-500.0,0.00020376,2]
[341119674,1730406636001,-500.0,0.00020376,2]
[341119675,1730406636011,-500.0,0.00020376,2]
[341119676,1730406636022,-111.23905217,0.00020377,2]
[341119682,1730406638176,-380.07436616,0.00020377,2]
[341119683,1730406638186,-1740.28259486,0.00020377,2]
[341119684,1730406638198,-2848.01935708,0.00020377,2]
[341119685,1730406638343,-12007.73978972,0.00020377,2]
[341119807,1730406643199,-62884.75397645,0.00020377,2]
[341119808,1730406643210,-988.56166698,0.00022659,2]
[341119809,1730406643221,-157.646979,0.00022759,2]
[341119810,1730406643231,-988.56166693,0.00024836,2]
[341119811,1730406643240,-163.88925,0.0003,2]
[341119812,1730406643249,-160.724408,0.000307,2]
[341119813,1730406643259,-160.724408,0.00031233,2]
[341119816,1730406643271,-174.5920746,0.00031315,2]
[341119818,1730406643286,-24900.0,0.00031542,2]
[341119819,1730406643295,-157.646979,0.00031546,2]
[341119821,1730406643305,-469.55518156,0.00031765,2]
[341119822,1730406643314,-152.44714167,0.00031765,2]
[341119823,1730406643325,-442.09544843,0.00031765,2]
[341119824,1730406643334,-160.724408,0.00031766,2]
[341119825,1730406643344,-160.724408,0.00032299,2]
[341119826,1730406643354,-163.88925,0.00032954,2]
[341119827,1730406643364,-1054.06028806,0.00033528,2]
[341119828,1730406643374,-210.9749991,0.00033671,2]
[341119829,1730406643383,-167.529,0.0003413,2]
[341119830,1730406643392,-418.7080139,0.00034164,2]
[341119831,1730406643401,-210.9749991,0.00034164,2]
[341119832,1730406643411,-1946.17,0.000344,2]
[341119833,1730406643424,-1046.11,0.000344,31]
[341119834,1730406643435,-1046.11,0.000344,31]
[341119835,1730406643446,-1046.11,0.000344,31]
[341119836,1730406643457,-1046.11,0.000344,31]
[341119837,1730406643598,-1046.11,0.000344,31]
[341119838,1730406643609,-1046.11,0.000344,31]
[341119839,1730406643621,-1046.11,0.000344,31]
[341119840,1730406643632,-1046.11,0.000344,31]
[341119841,1730406643642,-1046.11,0.000344,31]
[341119842,1730406643654,-1046.11,0.000344,31]
[341119843,1730406643663,-1046.11,0.000344,31]
[341119844,1730406643672,-1046.11,0.000344,31]
[341119845,1730406643685,-158.93371464,0.00034442,8]
[341119846,1730406643697,-210.9749991,0.00034658,2]
[341119847,1730406643706,-210.9749991,0.00034658,2]
[341119848,1730406643716,-210.9749991,0.00034658,2]
[341119849,1730406643726,-210.9749991,0.00034658,2]
[341119850,1730406643735,-210.9749991,0.00034658,2]
[341119851,1730406643745,-7177.53557606,0.00034775,2]
[341119852,1730406643756,-495.23370285,0.000349,2]
[341119853,1730406643765,-500.0,0.00034999,2]
[341119854,1730406643774,-1333.72011317,0.00035,7]
[341119855,1730406643786,-245.0,0.00035,14]
[341119856,1730406643795,-500.0,0.00035,14]
[341119857,1730406643804,-13.01060456,0.00035,120]
[341119858,1730406643814,-34472.84218081,0.00035,30]
[341119859,1730406643824,-1516.75610583,0.00035,2]
[341119860,1730406643833,-47938.85631581,0.0003503,2]
[341119861,1730406643843,-5000.0,0.00035041,30]
[341119862,1730406643852,-1000.0,0.00035056,120]
[341119863,1730406643862,-1000.0,0.00035056,120]
[341119864,1730406643871,-1000.0,0.00035056,120]
[341119865,1730406643880,-1000.0,0.00035056,120]
[341119866,1730406643890,-1000.0,0.00035056,120]
[341119867,1730406643900,-864.7862344,0.00035056,120]
[341119868,1730406643909,-200.0,0.00035056,120]
[341119869,1730406643919,-500.0,0.00035068,116]
[341119870,1730406643929,-966.01177926,0.00035274,14]
[341119871,1730406643939,-151.0,0.00035276,3]
[341119872,1730406643949,-500.0,0.00035276,3]
[341119873,1730406643959,-500.0,0.00035358,5]
[341119874,1730406643969,-500.0,0.00035358,5]
[341119875,1730406643979,-500.0,0.00035358,2]
[341119876,1730406643989,-500.0,0.00035358,5]
[341119877,1730406643999,-5000.0,0.00035395,30]
[341119878,1730406644008,-495.23370282,0.000354,2]
[341119879,1730406644017,-210.9749991,0.00035479,2]
[341119880,1730406644027,-500.0,0.00035496,5]
[341119881,1730406644038,-263.01375718,0.00035496,5]
[341119882,1730406644048,-500.0,0.00035496,5]
[341119883,1730406644058,-500.0,0.00035496,5]
[341119884,1730406644067,-151.0,0.00035589,120]
[341119885,1730406644077,-1000.0,0.000356,2]
[341119886,1730406644087,-2508.56,0.00035616,120]